bitfinex/quotes_ETHUSD_20220227
["timestamp","ask_amount","ask_price","bid_price","bid_amount"]
[1645970576961,0.5,2780.9,2779.1,0.01298146]
[1645970577169,0.5,2780.9,2779.3,0.89957]
[1645970577355,0.25,2781.0,2779.4,14.9621]
[1645970577556,0.25,2781.0,2779.2,8.34493174]
[1645970577750,0.25,2781.0,2779.2,7.33239997]
[1645970577952,0.6121,2781.0,2779.2,7.33239997]
[1645970578151,0.3621,2780.8,2779.2,7.1942]
[1645970578353,0.3621,2780.4,2779.2,7.1942]
[1645970578751,0.3621,2780.4,2779.2,7.0942]
[1645970578951,1.0,2780.5,2779.2,7.0942]
[1645970578952,0.3621,2780.2,2779.2,7.0942]
[1645970579156,2.00405755,2780.3,2779.3,3.8621]
[1645970579353,2.00405755,2780.3,2779.9,0.01231754]
[1645970579354,0.00405755,2780.3,2779.9,0.01231754]
[1645970579554,0.00405755,2780.3,2779.2,7.3942]
[1645970579789,0.00405755,2780.3,2779.2,8.3942]
[1645970579992,0.00405755,2780.3,2779.3,0.02891]
[1645970580194,0.00405755,2780.3,2779.8,1.26173062]
[1645970580389,2.0,2780.8,2779.8,1.26173062]
[1645970580390,0.00483321,2779.9,2779.8,1.26173062]
[1645970580595,1.0,2781.3,2779.8,1.26173062]
[1645970580597,0.64437093,2782.3,2780.1,8.0]
[1645970580803,3.97480224,2783.2,2780.1,8.0]
[1645970580804,0.5,2783.2,2781.1,0.01257016]
[1645970581190,0.5,2783.2,2780.4,3.5]
[1645970581191,0.04149492,2782.9,2781.2,0.02887]
[1645970581392,0.04149492,2782.9,2781.0,0.13819997]
[1645970581595,0.04092649,2782.8,2781.0,0.13819997]
[1645970581993,0.04035807,2782.7,2781.0,0.13819997]
[1645970582394,2.0,2782.6,2781.0,0.13819997]
[1645970583736,0.00502434,2781.9,2781.0,0.13819997]
[1645970584632,0.20337086,2782.5,2781.0,0.13819997]
[1645970584833,2.55,2782.6,2781.0,0.13819997]
[1645970585035,0.00502449,2781.6,2781.0,0.13819997]
[1645970585635,1.85502449,2782.4,2781.1,2.5]
[1645970585837,2.15502449,2782.4,2781.0,0.13819997]
[1645970586237,0.00502456,2781.4,2781.0,0.13819997]
[1645970586437,0.00502456,2781.4,2780.5,0.02887]
[1645970586438,0.22029112,2782.5,2780.5,0.02887]
[1645970586637,0.22029112,2782.5,2780.3,7.61759212]
[1645970586638,1.8096,2782.2,2780.3,0.03079212]
[1645970586839,0.19523826,2782.1,2780.3,0.03079212]
[1645970587478,5.0,2782.0,2780.3,0.03079212]
[1645970587783,0.25,2782.6,2780.3,0.03079212]
[1645970587784,1.0,2784.1,2781.9,5.0]
[1645970587994,3.66823898,2785.7,2783.5,5.0]
[1645970587995,0.53753143,2784.7,2783.5,5.0]
[1645970588188,12.58237093,2785.8,2783.2,0.01235688]
[1645970588189,1.0,2784.8,2783.2,0.01235688]
[1645970588384,1.0,2784.8,2782.9,5.13819997]
[1645970588586,0.24414912,2784.7,2782.9,5.13819997]
[1645970588786,0.24414912,2784.7,2782.9,0.13819997]
[1645970589088,1.0,2783.3,2782.6,1.0]
[1645970589283,0.07406416,2782.8,2781.1,0.01550954]
[1645970589485,0.07406416,2782.8,2781.1,6.42275333]
[1645970589683,0.07406416,2782.8,2781.2,3.5]
[1645970589886,0.07406416,2782.8,2781.1,5.01550954]
[1645970590091,2.0,2782.4,2781.1,5.01550954]
[1645970590289,2.0,2782.4,2781.2,3.5]
[1645970590501,2.0,2782.4,2781.1,0.01550954]
[1645970590502,0.3,2782.4,2781.1,0.01550954]
[1645970590694,3.0,2782.3,2781.1,0.01550954]
[1645970590966,2.0,2782.3,2781.1,0.01550954]
[1645970591155,1.0,2782.0,2781.1,0.01550954]
[1645970591552,1.30547124,2782.0,2781.1,0.01550954]
[1645970591753,1.30547124,2782.0,2781.0,4.5273061]
[1645970591754,0.30547124,2782.0,2781.0,4.5273061]
[1645970591955,0.30547124,2782.0,2780.8,0.13819997]
[1645970591956,1.0,2781.9,2780.8,0.13819997]
[1645970592153,1.0,2781.9,2780.8,4.66550607]
[1645970592554,1.0,2781.6,2780.8,0.13819997]
[1645970592754,0.00547139,2781.5,2780.8,0.13819997]
[1645970592953,0.00547139,2781.5,2780.7,0.01907658]
[1645970593763,2.0,2781.3,2780.7,0.01907658]
[1645970594162,2.3,2781.3,2779.8,4.5273061]
[1645970594358,2.3,2781.3,2780.5,0.01907732]
[1645970595012,1.0,2780.8,2779.9,4.5273061]
[1645970595212,1.3,2780.8,2780.3,0.00464861]
[1645970595615,0.3,2780.8,2780.3,0.00464861]
[1645970595817,2.0,2780.7,2780.3,0.00464861]
[1645970596211,2.3,2780.7,2780.3,0.00464861]
[1645970596911,2.3,2780.7,2779.4,4.5273061]
[1645970596912,2.3,2780.7,2780.0,0.01549732]
[1645970597112,0.3,2780.7,2780.0,0.01549732]
[1645970597312,2.0,2780.5,2780.0,0.01549732]
[1645970597513,2.3,2780.5,2780.0,0.01549732]
[1645970598326,1.0,2780.3,2779.8,0.01549844]
[1645970598553,2.3,2780.5,2779.8,0.01549844]
[1645970598554,1.0,2780.2,2779.8,0.01549844]
[1645970598958,1.3,2780.2,2779.8,0.01549844]
[1645970599159,1.3,2780.2,2779.7,0.01678312]
[1645970599160,8.4726939,2780.1,2779.7,0.01678312]
[1645970599359,1.20754462,2780.0,2779.7,8.312e-05]
[1645970599557,2.0,2779.8,2779.7,8.312e-05]
[1645970599756,2.3,2779.8,2779.7,8.312e-05]
[1645970599959,3.3,2779.8,2779.7,8.312e-05]
[1645970600256,3.50479533,2779.8,2779.7,8.312e-05]
[1645970600457,4.97748923,2779.8,2779.7,8.312e-05]
[1645970600657,4.50479533,2779.8,2779.7,8.312e-05]
[1645970600862,15.8226939,2779.8,2779.7,8.312e-05]
[1645970601055,11.1,2779.6,2779.3,9.632e-05]
[1645970601259,11.83443446,2779.5,2779.3,9.632e-05]
[1645970601459,11.83443446,2779.5,2777.3,4.5273061]
[1645970601460,0.3621,2779.2,2777.4,3.5]
[1645970601659,0.8347939,2778.9,2777.3,4.5273061]
[1645970601858,1.07728271,2778.9,2777.3,4.5273061]
[1645970602057,1.0,2778.5,2776.9,1.17524802]
[1645970602288,1.0,2778.5,2777.1,4.5273061]
[1645970602490,1.3,2778.5,2777.1,4.5273061]
[1645970602887,1.0,2777.8,2777.1,4.5273061]
[1645970603591,0.3,2778.5,2777.1,4.5273061]
[1645970603791,1.0,2777.8,2776.8,0.01250957]
[1645970603994,0.49248881,2778.9,2777.7,4.5273061]
[1645970603995,0.25,2778.9,2777.7,4.5273061]
[1645970604396,2.0,2778.7,2777.7,4.5273061]
[1645970604592,2.0,2778.7,2777.8,0.1439]
[1645970605794,2.0,2778.7,2777.9,4.5273061]
[1645970607248,2.0,2778.7,2777.4,0.1439]
[1645970607454,2.0,2778.7,2777.9,4.5273061]
[1645970608656,2.0,2778.7,2777.7,4.5273061]
[1645970608851,2.0,2778.7,2777.8,0.1439]
[1645970609053,2.0,2778.7,2777.7,4.5273061]
[1645970609255,3.3,2778.7,2777.2,4.5273061]
[1645970609453,2.0,2778.4,2777.2,4.5273061]
[1645970609691,1.0,2778.0,2777.2,4.5273061]
[1645970610495,1.3,2778.0,2777.2,4.5273061]
[1645970610794,1.3,2778.0,2777.0,4.5273061]
[1645970610995,1.3,2778.0,2777.9,0.00465029]
[1645970611791,1.3,2778.0,2777.9,0.00232487]
[1645970612194,1.3,2778.0,2777.7,0.00465071]
[1645970612894,1.3,2778.0,2777.0,4.5273061]
[1645970613551,1.3,2778.0,2776.8,4.5273061]
[1645970615052,1.0,2778.0,2777.1,4.5273061]
[1645970615253,3.0,2778.1,2777.4,4.5273061]
[1645970615651,2.0,2778.1,2777.4,4.5273061]
[1645970615853,2.0,2778.1,2776.7,11.1]
[1645970616055,1.0,2778.7,2777.8,4.5273061]
[1645970616258,2.0,2778.6,2778.1,4.5273061]
[1645970616855,2.0,2778.6,2777.7,0.3621]
[1645970617056,2.0,2778.6,2777.9,4.8894061]
[1645970617306,5.30637592,2779.6,2778.5,4.5273061]
[1645970617307,0.00545592,2779.6,2778.5,4.5273061]
[1645970617510,3.0,2779.3,2778.5,5.98765446]
[1645970617706,1.0,2779.3,2778.5,1.46034836]
[1645970617905,1.0,2779.3,2778.9,0.3621]
[1645970618105,1.0,2779.3,2779.1,1.06726758]
[1645970618311,0.0054568,2779.6,2779.2,8.0273061]
[1645970618514,0.0054568,2779.6,2779.5,4.5273061]
[1645970619015,0.00406781,2779.6,2779.5,4.5273061]
[1645970619911,0.25,2780.0,2779.5,4.5273061]
[1645970620113,0.0040683,2779.7,2779.6,1.35374418]
[1645970620512,0.0040683,2779.7,2779.6,1.71584418]
[1645970621141,2.0,2780.5,2779.5,4.8894061]
[1645970621341,0.00379695,2779.8,2779.5,0.3621]
[1645970621548,9.695e-05,2779.8,2779.7,4.5273061]
[1645970621746,9.695e-05,2779.8,2779.7,8.0273061]
[1645970622142,0.25,2780.6,2779.8,0.3621]
[1645970622342,2.0,2781.2,2780.2,4.5273061]
[1645970622542,2.0,2781.2,2779.9,3.8621]
[1645970622543,2.25,2781.2,2779.9,3.8621]
[1645970622743,2.0,2781.2,2780.4,4.5273061]
[1645970623143,2.0,2781.2,2780.5,3.5]
[1645970623344,0.5,2781.6,2780.9,4.5273061]
[1645970623946,1.6,2782.0,2780.9,4.5273061]
[1645970624150,0.07604864,2781.9,2780.9,4.5273061]
[1645970624791,0.07604864,2781.9,2781.0,3.8621]
[1645970624993,0.00406587,2781.5,2781.0,0.3621]
[1645970625189,0.00406587,2781.5,2781.4,4.5273061]
[1645970625395,0.00406587,2781.5,2780.9,0.13819997]
[1645970626401,0.00546106,2781.6,2780.6,4.5273061]
[1645970626599,0.00546106,2781.6,2780.4,4.5273061]
[1645970626801,0.00546106,2781.6,2780.1,3.5]
[1645970627199,0.00546106,2781.6,2780.8,4.5273061]
[1645970627396,0.00546106,2781.6,2780.5,0.3621]
[1645970627598,1.9,2781.9,2780.8,4.5273061]
[1645970627599,0.00546128,2781.1,2780.8,4.5273061]
[1645970627800,0.00546128,2781.1,2780.3,4.5273061]
[1645970628465,2.4347939,2781.7,2780.0,11.324]
[1645970628664,0.00546143,2780.8,2780.1,4.5273061]
[1645970629062,0.00546143,2780.8,2780.0,0.3621]
[1645970629261,0.00546143,2780.8,2780.1,4.5273061]
[1645970629469,1.3621,2781.5,2780.1,3.8621]
[1645970629470,1.0,2781.5,2780.1,3.8621]
[1645970629665,2.9,2781.7,2780.8,4.5273061]
[1645970629863,0.3,2781.5,2780.8,4.5273061]
[1645970630263,1.9,2781.7,2780.8,4.5273061]
[1645970630463,1.9,2781.7,2780.1,3.8621]
[1645970630464,3.2621,2781.7,2780.4,4.5273061]
[1645970630663,3.2621,2781.7,2780.2,4.5273061]
[1645970630664,0.08016712,2781.6,2780.2,4.5273061]
[1645970630864,2.48008108,2781.7,2780.4,4.5273061]
[1645970631063,1.6,2781.5,2780.2,4.8894061]
[1645970631264,0.00509963,2781.4,2780.2,4.8894061]
[1645970631463,0.00509963,2781.4,2780.4,4.5273061]
[1645970631969,1.9,2781.5,2780.4,4.02494011]
[1645970632210,0.00511124,2781.0,2780.4,4.02494011]
[1645970632411,0.00511124,2781.0,2779.9,3.38]
[1645970632719,1.78519232,2781.0,2779.8,0.13819997]
[1645970633116,0.07637289,2780.9,2779.8,0.13819997]
[1645970633312,0.07637289,2780.9,2779.6,4.02494011]
[1645970633517,0.89997,2780.8,2779.6,4.02494011]
[1645970633720,0.00521252,2780.5,2779.6,4.02494011]
[1645970634115,0.00521252,2780.5,2779.3,1.61129351]
[1645970634315,1.0,2780.6,2779.3,1.61129351]
[1645970634316,1.0,2780.6,2779.3,0.3621]
[1645970634622,0.00521267,2780.2,2779.1,0.00383345]
[1645970635416,0.07665367,2780.1,2779.1,0.00383345]
[1645970635618,1.0,2779.7,2779.1,0.00383345]
[1645970636038,1.0,2779.7,2779.1,0.0044174]
[1645970636039,1.3,2779.7,2779.1,0.0044174]
[1645970637145,1.05181515,2779.6,2779.1,0.0044174]
[1645970637342,0.25851375,2779.5,2779.1,0.0044174]
[1645970637539,0.07675526,2779.4,2779.1,0.0044174]
[1645970637750,0.07675526,2779.4,2779.1,0.00197449]
[1645970637751,0.29406899,2779.4,2779.1,0.00197449]
[1645970637941,0.07675526,2779.3,2777.9,4.58899759]
[1645970638141,1.6,2779.1,2777.8,7.4309]
[1645970638441,1.6,2778.7,2778.3,0.01767443]
[1645970638841,2.9,2778.7,2778.3,0.01767443]
[1645970639240,2.3,2778.7,2778.3,0.01767443]
[1645970639541,2.5007,2778.5,2778.4,0.00131673]
[1645970639835,2.8007,2778.5,2778.4,0.00131673]
[1645970640015,3.8007,2778.5,2778.4,0.00131673]
[1645970640417,3.8007,2778.5,2777.3,4.02494011]
[1645970640619,0.3,2778.4,2777.3,4.02494011]
[1645970640817,0.3,2778.4,2778.3,0.00438309]
[1645970641619,2.9,2778.5,2777.3,7.88704011]
[1645970641821,2.9,2778.5,2777.3,4.38704011]
[1645970642025,2.9,2778.5,2778.2,0.00438325]
[1645970642625,1.9,2778.5,2778.2,0.00438325]
[1645970642828,2.9,2778.5,2777.3,4.38704011]
[1645970643025,1.9,2778.5,2777.3,4.02494011]
[1645970643224,2.9,2778.5,2778.2,0.00417726]
[1645970643440,1.9,2778.5,2778.2,0.00417726]
[1645970643645,2.9,2778.5,2778.2,0.00417726]
[1645970643844,1.9,2778.5,2778.2,0.00417726]
[1645970644044,2.9,2778.5,2778.2,0.00417726]
[1645970644246,1.9,2778.5,2778.2,0.00417726]
[1645970644450,1.48254865,2778.5,2778.2,7.726e-05]
[1645970644651,2.74345241,2778.3,2778.2,7.726e-05]
[1645970644849,8.0,2778.2,2777.8,0.01671155]
[1645970645249,9.0,2778.2,2777.8,0.01671155]
[1645970645452,9.0,2778.2,2776.7,3.411]
[1645970645453,0.90109,2777.8,2776.7,3.411]
[1645970645654,7.3621,2778.1,2776.6,0.3621]
[1645970645655,1.6,2777.2,2776.6,0.3621]
[1645970645851,0.5419236,2778.1,2777.1,4.02494011]
[1645970645852,1.0,2778.1,2777.1,4.02494011]
[1645970646149,1.6,2777.8,2777.1,4.02494011]
[1645970646349,1.6,2777.8,2777.0,4.02494011]
[1645970646953,1.6,2777.8,2776.7,1.17188123]
[1645970647432,1.6,2777.8,2777.1,4.02494011]
[1645970647635,1.6,2777.8,2776.6,0.1439]
[1645970647832,1.6,2777.8,2776.6,4.16884011]
[1645970648032,2.50093,2777.8,2776.6,4.16884011]
[1645970648233,3.80093,2777.8,2776.6,4.16884011]
[1645970648634,3.80093,2777.8,2776.8,5.44281307]
[1645970649236,3.80093,2777.8,2776.6,4.16884011]
[1645970649637,0.90098,2777.6,2776.6,4.16884011]
[1645970650033,1.20098,2777.6,2776.6,4.16884011]
[1645970650440,1.6,2777.8,2777.5,4.02494011]
[1645970650637,0.00546157,2778.1,2777.5,4.02494011]
[1645970650836,0.00546157,2778.1,2777.0,0.00460927]
[1645970651042,0.00546157,2778.1,2777.5,4.02494011]
[1645970651242,0.00546157,2778.1,2777.1,4.02494011]
[1645970651444,0.25,2778.3,2776.9,4.02494011]
[1645970651945,0.00546224,2778.1,2777.4,0.00460852]
[1645970652141,0.00546224,2778.1,2777.4,0.00380852]
[1645970652343,0.90083,2778.0,2777.4,0.00380852]
[1645970652546,2.50098,2777.9,2776.5,0.00072564]
[1645970652753,3.5,2777.8,2776.5,0.00072564]
[1645970652948,0.97505989,2777.6,2776.5,0.00072564]
[1645970653148,3.8,2777.8,2776.5,0.00072564]
[1645970653149,3.5,2777.5,2776.5,0.00072564]
[1645970653350,0.24514508,2777.5,2776.5,0.00072564]
[1645970653546,1.6,2776.9,2776.5,0.00072564]
[1645970653746,1.9,2776.9,2776.5,0.00072564]
[1645970653946,0.3,2776.9,2776.5,0.00072564]
[1645970654148,1.6,2776.6,2776.5,0.00072564]
[1645970654351,1.9,2776.6,2776.5,0.00072564]
[1645970654546,2.9,2776.6,2776.5,0.00072564]
[1645970654827,3.9,2776.6,2776.5,0.00072564]
[1645970655025,7.4,2776.6,2776.5,0.00072564]
[1645970655227,7.4,2776.6,2775.3,7.36]
[1645970655228,8.20825739,2776.5,2775.3,7.36]
[1645970655426,1.10483374,2776.3,2776.0,0.0184355]
[1645970655622,1.40483374,2776.3,2776.0,0.0184355]
[1645970655822,0.26790659,2776.2,2776.0,0.0184355]
[1645970656225,1.26790659,2776.2,2775.4,0.04149491]
[1645970656426,1.6,2776.1,2775.4,0.04149491]
[1645970656623,1.6,2776.1,2775.5,0.01843849]
[1645970656624,0.97505989,2776.0,2775.5,0.01843849]
[1645970656823,8.0,2775.9,2774.7,0.04547388]
[1645970657022,0.21143148,2775.8,2775.6,0.04035807]
[1645970657222,0.21143148,2775.8,2774.7,0.04547388]
[1645970657425,0.9017182,2775.6,2774.7,0.04547388]
[1645970657631,0.90174,2775.4,2774.7,0.04547388]
[1645970657827,3.8,2775.3,2774.7,0.04547388]
[1645970658029,0.48631551,2775.3,2774.7,0.04547388]
[1645970658230,0.3,2775.2,2774.7,0.04547388]
[1645970658449,0.25471003,2775.1,2774.7,0.04547388]
[1645970658652,0.90184,2775.0,2774.7,0.04547388]
[1645970659050,0.90184,2775.0,2774.2,0.049276]
[1645970659252,1.9,2774.7,2774.3,0.04774757]
[1645970659951,2.80191,2774.7,2774.2,0.048316]
[1645970660150,3.70382,2774.7,2774.4,0.00451945]
[1645970660352,4.70382,2774.7,2774.4,0.00451945]
[1645970660557,4.70382,2774.7,2774.5,0.04661072]
[1645970660950,4.70382,2774.7,2774.4,0.00451945]
[1645970661151,3.10382,2774.7,2774.4,0.00451945]
[1645970661352,2.10382,2774.7,2774.0,4.02494011]
[1645970661553,1.6,2774.4,2773.9,4.02494011]
[1645970661751,1.9,2774.4,2773.6,0.00096]
[1645970661951,1.9,2774.4,2773.5,11.38494011]
[1645970662393,0.90202,2774.3,2773.5,7.36]
[1645970662597,0.90202,2774.3,2773.4,0.00096]
[1645970662798,2.9,2774.4,2773.4,0.00096]
[1645970662996,2.9,2774.4,2773.4,0.36306]
[1645970663209,2.9,2774.4,2772.9,4.53210011]
[1645970663210,1.9,2774.4,2772.9,4.53210011]
[1645970663414,1.9,2774.4,2770.8,0.35959]
[1645970663415,5.0,2773.0,2770.8,0.35959]
[1645970663608,8.0,2774.1,2771.2,5.7036]
[1645970663609,3.5,2772.9,2771.2,5.7036]
[1645970663804,1.6,2771.4,2771.2,0.18851419]
[1645970664004,1.6,2771.4,2770.0,0.0128798]
[1645970664402,0.13819997,2771.8,2770.0,0.0128798]
[1645970664403,0.13819997,2771.8,2770.8,1.20495878]
[1645970664604,2.5027,2772.0,2770.8,1.20495878]
[1645970664802,0.6306,2772.0,2770.8,1.20495878]
[1645970665304,0.25,2772.3,2771.1,0.01210557]
[1645970665707,0.25,2772.3,2770.6,0.00451853]
[1645970665708,1.1525,2772.3,2770.6,0.00451853]
[1645970665945,1.80533,2772.1,2770.6,0.00451853]
[1645970666148,1.80542,2772.0,2770.6,0.00451853]
[1645970666349,5.30542,2772.0,2770.6,0.00451853]
[1645970666551,5.30542,2772.0,2770.0,0.00096]
[1645970666552,0.01348824,2770.3,2770.0,0.00096]
[1645970666748,0.01348824,2770.3,2769.9,6.53575437]
[1645970666948,0.01348824,2770.3,2769.6,2.38236]
[1645970666949,0.01348824,2770.3,2769.8,3.7196]
[1645970667351,0.01348824,2770.3,2769.7,5.0361212]
[1645970667352,0.01348824,2770.3,2769.7,0.0361212]
[1645970667551,0.01348824,2770.3,2769.9,1.17614566]
[1645970668952,2.44134991,2771.4,2770.3,8.0]
[1645970669153,0.25,2772.0,2770.4,0.3621]
[1645970669352,0.25,2772.0,2770.9,5.0]
[1645970669552,3.07094991,2772.2,2770.9,0.00096]
[1645970669802,3.07094991,2772.2,2771.6,1.12834233]
[1645970670002,3.07094991,2772.2,2770.9,0.00096]
[1645970670402,0.6296,2772.2,2770.9,0.00096]
[1645970670602,0.6296,2772.2,2770.4,0.37501907]
[1645970670603,0.6296,2772.2,2770.5,0.00096]
[1645970671009,0.6296,2772.2,2771.5,1.28810718]
[1645970671406,0.6296,2772.2,2770.7,0.00096]
[1645970671810,0.00525971,2772.0,2770.7,0.00096]
[1645970672407,0.00525971,2772.0,2770.9,1.03316707]
[1645970672606,1.8053,2771.9,2770.9,0.00096]
[1645970672809,3.5,2771.8,2770.2,0.00096]
[1645970673008,0.1443,2771.7,2770.2,0.00096]
[1645970673209,0.00525991,2771.5,2770.2,0.00096]
[1645970673662,1.0471973,2771.4,2770.4,1.18907982]
[1645970673859,1.9500973,2771.4,2770.7,0.0652762]
[1645970674057,1.9500973,2771.4,2770.7,0.03562936]
[1645970674259,0.00528502,2771.0,2770.7,0.03562936]
[1645970675059,0.90279,2771.5,2770.7,0.03562936]
[1645970675560,0.00528502,2771.0,2770.7,0.03562936]
[1645970676358,0.1443,2771.4,2770.7,0.03562936]
[1645970676559,0.0039978,2771.0,2770.7,0.03562936]
[1645970676963,0.0039978,2771.0,2770.7,0.03192936]
[1645970677231,0.6335978,2771.0,2770.7,0.03192936]
[1645970677615,0.6296,2771.0,2770.7,0.03192936]
[1645970677816,0.6296,2771.0,2770.8,1.32674399]
[1645970678018,0.6296,2771.8,2770.9,0.3621]
[1645970678220,0.13819997,2772.5,2770.9,0.36306]
[1645970678620,0.7739,2772.4,2770.9,0.00096]
[1645970678826,0.3621,2772.3,2770.9,0.00096]
[1645970679022,1.2647737,2772.0,2770.9,0.00096]
[1645970679221,0.7739,2771.9,2770.9,0.00096]
[1645970679421,4.636,2771.9,2770.7,0.03192936]
[1645970679622,4.85021,2771.9,2770.7,0.03192936]
[1645970679920,4.85021,2771.9,2770.4,0.00096]
[1645970679921,0.9029944,2771.2,2770.4,0.00096]
[1645970680130,0.90302,2771.0,2770.1,1.10814842]
[1645970680324,0.90302,2771.0,2769.7,0.0361212]
[1645970680526,1.26512,2771.0,2769.7,0.0370812]
[1645970680726,0.3621,2771.0,2769.7,0.0370812]
[1645970681166,2.3,2771.0,2769.7,0.0370812]
[1645970681371,3.20301,2771.0,2769.8,1.15618664]
[1645970681563,3.56511,2771.0,2770.2,0.00446023]
[1645970681765,5.46813,2771.0,2770.2,0.00446023]
[1645970681963,2.0,2771.0,2770.8,1.43767956]
[1645970682165,0.14943695,2771.1,2770.8,1.43767956]
[1645970682166,0.00513695,2771.1,2770.8,1.43767956]
[1645970682565,0.00513695,2771.1,2770.2,0.00542023]
[1645970682766,0.00513695,2771.1,2770.2,0.00446023]
[1645970682966,2.0,2771.4,2769.9,0.66306]
[1645970683166,2.0,2771.4,2770.2,0.00108111]
[1645970683565,2.0,2771.4,2770.5,1.06284148]
[1645970683970,2.0,2771.4,2770.5,1.01284148]
[1645970684166,0.00490417,2771.1,2770.5,1.01284148]
[1645970684377,0.00490417,2771.1,2770.2,0.00358932]
[1645970685303,0.02222969,2770.9,2770.2,0.00358932]
[1645970685501,0.02222969,2770.9,2770.7,1.24774111]
[1645970685710,0.00490397,2771.1,2770.7,1.24774111]
[1645970685900,0.00490397,2771.1,2770.7,1.54774111]
[1645970686507,0.00490397,2771.1,2770.8,0.3621]
[1645970686704,0.00490431,2771.1,2770.8,11.4621]
[1645970687509,0.7813,2771.9,2770.8,11.4621]
[1645970687709,1.486e-05,2771.1,2770.8,12.7621]
[1645970687908,1.486e-05,2771.1,2771.0,16.4621]
[1645970688307,1.486e-05,2771.1,2771.0,12.7621]
[1645970688560,0.7813,2771.9,2771.0,12.7621]
[1645970689159,0.7813,2771.9,2771.7,11.4621]
[1645970689360,0.1443,2773.3,2771.9,11.4621]
[1645970689855,2.0,2773.4,2772.0,0.00096]
[1645970691163,0.25,2773.5,2772.2,11.4621]
[1645970691361,0.00550852,2772.8,2772.3,0.00096]
[1645970691661,0.00550852,2772.8,2772.2,12.7621]
[1645970691861,0.00550852,2772.8,2772.7,1.07278131]
[1645970692710,0.005247,2772.9,2772.7,1.07278131]
[1645970692909,0.005247,2772.9,2772.8,11.4621]
[1645970693111,4.7e-05,2772.9,2772.8,11.4621]
[1645970693512,0.25,2773.8,2772.7,0.6]
[1645970693712,0.25,2773.8,2772.7,0.3]
[1645970693912,0.25,2773.8,2772.7,11.7621]
[1645970694111,0.25,2773.8,2773.3,1.33199953]
[1645970694318,0.1441,2774.6,2773.3,0.73027395]
[1645970694319,0.7562,2774.6,2773.3,0.73027395]
[1645970694912,1.0562,2774.6,2773.3,0.73027395]
[1645970696357,0.00416748,2774.1,2772.9,0.3]
[1645970696562,0.00416748,2774.1,2772.8,10.5629]
[1645970696759,0.1441,2774.0,2772.8,3.2742]
[1645970697559,0.1441,2774.0,2772.4,7.3759]
[1645970697757,0.00550815,2773.6,2771.8,6.19766]
[1645970698564,0.36760815,2773.6,2771.8,4.62336]
[1645970698763,0.36760815,2773.6,2771.8,3.32336]
[1645970698964,0.00550812,2773.0,2771.8,3.32336]
[1645970699905,0.00550767,2773.0,2772.1,1.11919084]
[1645970700604,0.00550767,2773.0,2772.2,11.4621]
[1645970700805,0.1441,2773.7,2772.2,11.4621]
[1645970701003,1.3,2773.8,2772.2,11.4621]
[1645970701203,0.00378457,2773.0,2772.2,11.4621]
[1645970701603,0.00378457,2773.0,2772.1,0.3]
[1645970701803,0.00378457,2773.0,2772.5,1.39293572]
[1645970702204,0.00378457,2773.0,2772.6,11.4621]
[1645970702412,0.00512941,2773.0,2772.6,11.4621]
[1645970702615,0.00512941,2773.0,2772.6,12.4621]
[1645970702810,0.00512941,2773.0,2772.6,12.7621]
[1645970703014,0.00512941,2773.0,2772.6,0.1441]
[1645970703211,0.25,2773.9,2772.5,1.69293572]
[1645970703660,0.25,2773.9,2771.8,0.1441]
[1645970703661,0.00378667,2773.0,2771.8,0.1441]
[1645970703865,0.00378667,2773.0,2771.6,0.1441]
[1645970704161,0.00378667,2773.0,2771.5,11.6062]
[1645970704360,0.1441,2773.6,2771.5,11.6062]
[1645970704561,0.1441,2773.6,2772.3,1.29704421]
[1645970704760,0.00416514,2773.0,2772.3,1.65914421]
[1645970704964,0.00416514,2773.0,2772.3,1.29704421]
[1645970705561,0.00416514,2773.0,2772.4,0.3621]
[1645970705964,0.00416566,2773.0,2772.4,0.3621]
[1645970706764,3.8621,2773.8,2772.4,0.3621]
[1645970706963,0.31790068,2773.7,2772.4,0.3621]
[1645970707205,0.00551128,2773.0,2772.3,12.75914421]
[1645970707406,0.00551128,2773.0,2771.4,4.54298216]
[1645970707610,0.00551128,2773.0,2771.6,0.1442]
[1645970707808,0.00551128,2773.0,2771.7,1.17796065]
[1645970708008,0.00551128,2773.0,2771.7,1.47796065]
[1645970708209,0.00551128,2773.0,2771.9,11.1]
[1645970708410,0.00551068,2773.0,2772.1,11.1]
[1645970708612,0.00551068,2773.0,2772.9,1.15932648]
[1645970709613,0.25,2773.9,2772.9,12.25932648]
[1645970709813,0.00551156,2773.1,2772.9,1.15932648]
[1645970710617,0.00551156,2773.1,2773.0,8.5]
[1645970710618,1.156e-05,2773.1,2773.0,8.5]
[1645970710817,0.13819997,2775.0,2773.1,0.0055]
[1645970710818,0.7825709,2775.0,2773.1,0.0055]
[1645970711066,0.31833041,2774.9,2773.3,11.1]
[1645970711262,0.31833041,2774.9,2773.5,11.1]
[1645970711466,0.31833041,2774.9,2773.8,1.0575566]
[1645970711869,0.82453041,2774.9,2773.3,0.3]
[1645970712069,0.31833041,2774.8,2772.8,0.1441]
[1645970712267,0.1441,2774.7,2773.0,11.1]
[1645970712467,3.63819997,2775.0,2773.1,0.1441]
[1645970712468,0.31833041,2774.6,2773.1,0.1441]
[1645970712670,3.63819997,2775.0,2773.1,0.1441]
[1645970712671,0.31833041,2774.5,2773.1,0.1441]
[1645970712874,0.13819997,2775.0,2772.9,0.1441]
[1645970713069,0.31821634,2774.9,2773.1,11.1]
[1645970713266,0.31821634,2774.9,2773.2,0.1441]
[1645970713468,3.96231634,2774.9,2772.9,0.1441]
[1645970713670,3.96231634,2774.9,2772.6,0.3]
[1645970713671,2.26611364,2774.8,2772.7,0.1441]
[1645970713869,0.01268911,2774.4,2772.7,0.1441]
[1645970714069,0.3621,2774.2,2772.2,0.1441]
[1645970714270,0.3621,2774.0,2772.3,1.17631961]
[1645970714469,0.3621,2773.8,2772.3,1.17631961]
[1645970714698,0.4441,2774.1,2772.1,3.6441]
[1645970714900,0.4441,2774.1,2772.8,1.11187533]
[1645970714901,0.68009713,2774.0,2772.8,1.11187533]